bitfinex/quotes_ETHUSD_20250622
["timestamp","ask_amount","ask_price","bid_price","bid_amount"]
[1750622574659,1.5287,2185.0,2184.9,0.137306]
[1750622574865,1.5897,2185.0,2184.9,0.137306]
[1750622575159,1.5287,2185.0,2184.9,0.137306]
[1750622575360,1.5897,2185.0,2184.9,0.137306]
[1750622577027,12.1397,2185.0,2184.9,0.137306]
[1750622577330,14.12357,2185.0,2184.9,0.137306]
[1750622579479,14.12357,2185.0,2183.6,3.51301891]
[1750622579480,0.55,2184.7,2183.6,1.39111891]
[1750622579644,2.1434,2184.1,2183.6,1.39111891]
[1750622579967,7.718,2184.0,2183.6,14.11261236]
[1750622580295,1.5934,2184.4,2183.9,15.01356615]
[1750622580428,9.794,2185.0,2184.6,4.57735314]
[1750622580630,9.794,2185.0,2184.4,0.10567062]
[1750622580867,9.794,2185.0,2184.2,10.0]
[1750622580868,2.123,2185.0,2184.2,10.0]
[1750622581064,2.062,2185.5,2184.8,1.567]
[1750622581227,2.771098,2185.9,2185.3,14.95366615]
[1750622581427,7.745,2185.8,2185.3,4.57601772]
[1750622581661,7.745,2185.8,2185.1,0.0457563]
[1750622581662,7.806,2185.8,2185.1,0.0457563]
[1750622581903,7.806,2185.8,2185.4,4.57570261]
[1750622582065,7.745,2185.8,2185.5,4.57559423]
[1750622582269,7.745,2185.8,2185.1,14.95366615]
[1750622582561,7.745,2185.8,2185.3,4.57599445]
[1750622582763,7.806,2185.8,2185.2,4.57616504]
[1750622583144,7.806,2185.8,2185.3,4.57599937]
[1750622583546,7.806,2185.8,2185.1,21.03126635]
[1750622583866,7.806,2185.8,2185.2,4.57614524]
[1750622584170,0.061,2185.8,2185.1,16.45502277]
[1750622584377,9.903,2185.7,2185.2,1.64550228]
[1750622584969,9.903,2185.7,2185.2,6.22158454]
[1750622585883,9.903,2185.7,2185.3,4.5760097]
[1750622586374,9.842,2185.7,2185.3,4.5760097]
[1750622586679,7.737,2185.7,2185.5,4.57552852]
[1750622587173,7.737,2185.7,2185.4,10.0]
[1750622587567,7.737,2185.7,2185.4,14.57576987]
[1750622588975,7.737,2185.7,2185.3,4.57596695]
[1750622589283,7.737,2185.7,2185.3,6.8420641]
[1750622589466,7.737,2185.7,2185.4,4.57576702]
[1750622589672,0.55,2186.4,2185.3,6.8420641]
[1750622589673,2.098,2186.3,2185.8,11.6576]
[1750622589851,2.098,2186.3,2185.5,11.25007891]
[1750622589852,7.789,2186.4,2185.7,10.0]
[1750622590055,3.7588,2186.5,2186.2,4.57399992]
[1750622590056,7.736,2186.3,2186.2,4.57399992]
[1750622590256,7.738,2186.3,2186.2,4.57399992]
[1750622590653,7.738,2186.3,2186.1,4.57427309]
[1750622591039,7.738,2186.3,2186.0,4.57445038]
[1750622591375,7.738,2186.3,2186.1,4.57432381]
[1750622591974,7.738,2186.3,2186.0,4.57446413]
[1750622592282,8.88768,2186.3,2185.5,6.23309493]
[1750622592440,8.88768,2186.3,2185.4,1.434867]
[1750622592441,1.5272,2186.1,2185.4,1.434867]
[1750622592642,2.097,2186.0,2185.4,0.0599]
[1750622592839,0.061,2185.7,2185.0,4.57654491]
[1750622593040,0.99312,2185.7,2184.9,6.14394098]
[1750622593253,0.89312,2185.7,2185.0,4.57653679]
[1750622593957,1.5272,2185.8,2185.5,0.0587]
[1750622594156,7.741,2185.7,2185.4,0.0587]
[1750622594389,7.741,2185.7,2185.2,4.57614697]
[1750622594588,7.741,2185.7,2185.4,4.63448057]
[1750622594890,7.741,2185.7,2185.4,0.0587]
[1750622595094,1.5272,2185.8,2185.4,0.0587]
[1750622595392,7.745,2185.7,2185.4,0.0587]
[1750622595793,7.745,2185.7,2185.4,4.63445577]
[1750622595977,9.98132,2185.7,2184.9,0.45308821]
[1750622596178,10.04382,2185.7,2185.0,4.57662008]
[1750622596379,10.04382,2185.7,2184.8,1.6454]
[1750622596380,0.0625,2185.5,2184.8,0.0587]
[1750622596568,12.1107,2185.6,2184.5,1.5867]
[1750622596569,0.0625,2185.3,2184.6,4.57739577]
[1750622596929,7.747,2185.2,2184.6,5.25251122]
[1750622597082,7.747,2185.2,2184.6,4.63610164]
[1750622597458,7.747,2185.2,2184.7,4.57725933]
[1750622597662,7.747,2185.2,2184.5,1.6454]
[1750622597982,7.747,2185.2,2184.7,0.0587]
[1750622598165,7.8095,2185.2,2184.7,0.0587]
[1750622598374,0.823662,2185.1,2184.7,4.57727267]
[1750622598690,7.8095,2185.2,2184.6,0.0587]
[1750622598863,1.5607,2185.1,2184.6,0.0587]
[1750622599194,1.5607,2185.1,2184.7,4.57727396]
[1750622599695,1.5607,2185.1,2184.8,4.63573801]
[1750622599898,7.737,2185.1,2184.8,0.0587]
[1750622600102,7.737,2185.1,2184.9,4.57673229]
[1750622600398,7.738,2185.2,2185.0,4.5765308]
[1750622600696,2.098,2185.3,2185.1,4.57637211]
[1750622600903,2.098,2185.3,2185.2,4.63494016]
[1750622601104,1.5607,2185.6,2185.5,4.57561198]
[1750622601267,7.739,2185.9,2185.5,0.5162612]
[1750622601467,7.739,2185.9,2185.7,4.57504789]
[1750622601696,7.739,2185.9,2185.7,4.63374789]
[1750622601904,7.739,2185.9,2185.3,6.20702489]
[1750622602097,7.739,2185.9,2185.4,4.57579284]
[1750622602267,7.739,2185.9,2185.5,4.63429405]
[1750622602678,7.739,2185.9,2185.2,0.0587]
[1750622602904,7.739,2185.9,2185.4,4.5758079]
[1750622603103,7.739,2185.9,2185.4,0.0587]
[1750622603270,7.739,2185.9,2185.3,4.57600852]
[1750622603471,7.739,2185.9,2185.4,0.0587]
[1750622603671,7.739,2185.9,2185.5,4.57560709]
[1750622604572,7.739,2185.9,2185.4,4.63441009]
[1750622605506,7.739,2185.9,2185.5,0.0587]
[1750622605809,7.739,2185.9,2185.5,4.63420715]
[1750622605984,7.739,2185.9,2185.5,0.0587]
[1750622606303,7.739,2185.9,2185.3,4.57582445]
[1750622606510,7.739,2185.9,2185.3,0.04575403]
[1750622606719,2.098,2186.3,2185.9,4.57474562]
[1750622606868,7.736,2186.1,2185.9,4.57474562]
[1750622607504,7.736,2186.1,2185.8,0.0457448]
[1750622607710,2.098,2186.3,2186.0,4.57441724]
[1750622607879,2.098,2186.3,2186.2,4.57414692]
[1750622608078,2.098,2186.3,2186.1,4.63297614]
[1750622608505,2.098,2186.3,2186.1,4.57427614]
[1750622609173,2.098,2186.3,2186.0,5.49523664]
[1750622609374,2.098,2186.3,2186.0,4.57445761]
[1750622609704,2.098,2186.3,2186.2,4.57414692]
[1750622609873,2.098,2186.3,2186.0,5.64721904]
[1750622610077,2.098,2186.3,2186.2,4.57414692]
[1750622610592,2.098,2186.3,2186.2,4.63284692]
[1750622610906,2.098,2186.3,2186.0,1.07267681]
[1750622610907,2.098,2186.3,2186.0,5.70581791]
[1750622611211,2.098,2186.3,2186.0,5.64711791]
[1750622611511,2.098,2186.3,2186.0,4.5744411]
[1750622611714,2.098,2186.3,2186.1,4.63300427]
[1750622612181,2.098,2186.3,2186.1,0.0587]
[1750622612816,2.098,2186.3,2186.2,4.57414692]
[1750622613025,2.098,2186.3,2186.2,5.09026161]
[1750622613227,7.725,2186.9,2186.4,0.0587]
[1750622613379,7.725,2186.9,2186.8,4.57289189]
[1750622613580,1.6579,2187.3,2186.9,0.0587]
[1750622613787,9.816,2187.4,2186.9,6.72042221]
[1750622614017,1.05035,2187.3,2186.8,2.24421052]
[1750622614208,1.05035,2187.3,2187.0,2.24421052]
[1750622614712,0.00308359,2187.2,2187.0,2.24421052]
[1750622615708,1.6579,2187.1,2187.0,2.24421052]
[1750622616410,1.66098359,2187.1,2187.0,2.24421052]
[1750622618308,2.54461695,2187.1,2187.0,2.24421052]
[1750622618511,1.6579,2186.5,2185.6,0.0587]
[1750622618705,1.7204,2186.3,2185.3,3.34670412]
[1750622618892,1.7204,2186.3,2185.8,1.82116841]
[1750622618893,0.0625,2186.0,2185.8,1.82116841]
[1750622619304,2.1763,2186.1,2185.8,1.82116841]
[1750622619513,12.1763,2186.1,2185.8,1.82116841]
[1750622619814,0.00169598,2186.0,2185.8,1.82116841]
[1750622620015,0.0625,2185.9,2185.8,1.82116841]
[1750622620317,0.06419598,2186.0,2185.8,1.82116841]
[1750622620522,0.00169598,2185.9,2185.8,1.82116841]
[1750622622486,0.06419598,2185.9,2185.8,1.82116841]
[1750622623094,12.19359598,2185.9,2185.8,1.82116841]
[1750622623422,2.19359598,2185.9,2185.8,1.82116841]
[1750622623725,2.19359598,2185.9,2185.8,1.77946841]
[1750622623931,0.5787,2185.2,2184.2,1.6604]
[1750622624082,0.5787,2185.2,2184.3,0.38217397]
[1750622624083,10.55,2185.0,2184.3,0.38217397]
[1750622624287,10.55,2185.0,2184.3,0.44347397]
[1750622624700,10.55,2185.0,2184.3,0.38217397]
[1750622625891,11.39595721,2185.1,2183.9,0.0613]
[1750622625892,2.1932,2184.8,2183.9,0.0613]
[1750622626115,0.55,2184.6,2183.9,0.68393507]
[1750622626430,0.55,2184.6,2184.1,4.57842745]
[1750622626431,7.733,2184.5,2184.1,4.57842745]
[1750622626637,7.733,2184.5,2184.3,4.5780125]
[1750622626855,7.733,2184.5,2184.4,0.0613]
[1750622628921,7.733,2184.5,2184.4,4.63921613]
[1750622629144,1.64799653,2185.1,2184.1,11.5506]
[1750622629350,0.00479653,2185.1,2185.0,0.0613]
[1750622629496,0.00479653,2185.1,2184.7,0.0613]
[1750622629841,0.00479653,2185.1,2184.4,4.63913507]
[1750622629989,0.00479653,2185.1,2184.4,1.13809891]
[1750622630188,0.00479653,2185.1,2184.4,4.57791613]
[1750622630431,0.00479653,2185.1,2184.8,0.0613]
[1750622631571,10.193943,2185.0,2184.8,0.0613]
[1750622631770,10.193943,2185.0,2184.6,4.63868956]
[1750622631771,0.364943,2184.9,2184.6,4.63868956]
[1750622631927,0.364943,2184.9,2184.4,4.639182]
[1750622632254,0.364943,2184.9,2184.6,4.6387636]
[1750622632450,0.364943,2184.9,2184.6,0.0613]
[1750622632658,0.364943,2184.9,2184.3,1.5506]
[1750622632659,0.364943,2184.9,2184.3,1.6119]
[1750622632859,2.008143,2184.9,2184.3,11.5506]
[1750622633155,2.008143,2184.9,2184.8,4.57707799]
[1750622633156,0.364943,2184.9,2184.8,4.57707799]
[1750622633307,0.364943,2184.9,2184.8,4.68414444]
[1750622633507,0.364943,2184.9,2184.8,4.63837799]
[1750622633712,0.364943,2184.9,2184.8,6.18897799]
[1750622633713,0.323243,2184.9,2184.8,6.18897799]
[1750622634107,0.323243,2184.9,2184.8,16.18897799]
[1750622634305,0.323243,2184.9,2184.8,19.38603283]
[1750622634938,0.323243,2184.9,2184.8,10.0613]
[1750622635141,0.323243,2184.9,2184.8,14.63837799]
[1750622636437,0.00479653,2185.1,2184.9,14.63815792]
[1750622636640,0.00479653,2185.1,2185.0,4.63795903]
[1750622636811,0.00479653,2185.1,2185.0,4.6837223]
[1750622637016,0.00479653,2185.1,2185.0,9.23504955]
[1750622637341,0.00479653,2185.1,2185.0,0.0613]
[1750622637548,0.00479653,2185.1,2184.9,4.57686825]
[1750622637847,0.00479653,2185.1,2184.9,4.63816825]
[1750622638211,0.00479653,2185.1,2185.0,4.63795903]
[1750622638415,0.00479653,2185.1,2185.0,0.0613]
[1750622639224,0.00479653,2185.1,2184.8,10.0]
[1750622639547,0.00479653,2185.1,2184.7,0.0613]
[1750622639742,2.09079653,2185.1,2184.7,0.0613]
[1750622640438,2.09079653,2185.1,2184.8,4.57698652]
[1750622640747,2.09079653,2185.1,2184.4,6.22670716]
[1750622640748,1.5159,2185.0,2184.4,6.22670716]
[1750622640965,1.88277965,2185.0,2184.4,1.6489]
[1750622641261,1.88277965,2185.0,2184.5,10.0]
[1750622641558,1.88277965,2185.0,2184.2,11.20432493]
[1750622641715,1.88277965,2185.0,2184.0,0.4602706]
[1750622641716,1.5807,2184.7,2184.0,0.4602706]
[1750622642037,1.5807,2184.7,2183.8,1.5822]
[1750622642038,2.086,2184.6,2183.8,1.5822]
[1750622642240,0.36667,2184.5,2183.8,6.16135975]
[1750622642445,0.36667,2184.5,2183.9,14.57883351]
[1750622642446,8.10767,2184.5,2183.9,14.57883351]
[1750622642758,8.10767,2184.5,2183.9,10.0]
[1750622642964,8.10767,2184.5,2183.9,14.57895939]
[1750622643156,8.10767,2184.5,2183.8,1.97735757]
[1750622643441,2.606277,2184.4,2183.8,5.03562333]
[1750622643649,2.606277,2184.4,2183.8,4.57916576]
[1750622644047,2.606277,2184.4,2183.8,0.46743532]
[1750622644257,2.606277,2184.4,2183.7,6.22659181]
[1750622644544,0.0621,2184.3,2183.7,1.58599085]
[1750622644732,1.5807,2184.2,2183.8,18.0]
[1750622644941,2.092,2184.1,2183.8,18.0]
[1750622646021,0.0621,2183.9,2183.7,1.58599085]
[1750622646217,1.5807,2184.0,2183.7,1.58599085]
[1750622646443,2.092,2183.9,2183.7,1.64729085]
[1750622646726,10.0,2184.4,2183.9,4.64016551]
[1750622646727,1.515,2184.4,2183.9,4.64016551]
[1750622646924,1.515,2184.4,2183.7,11.58599085]
[1750622647124,1.5771,2184.4,2183.7,1.58599085]
[1750622647855,0.55,2184.3,2183.7,1.58599085]
[1750622648761,0.55,2184.3,2183.7,6.16527514]
[1750622648963,1.515,2184.4,2183.7,6.16527514]
[1750622649166,1.515,2184.4,2184.0,0.0613]
[1750622649373,1.515,2184.4,2184.1,0.0613]
[1750622649774,2.092,2184.5,2184.1,11.25010956]
[1750622649953,9.833,2184.8,2184.2,5.92267627]
[1750622650153,9.833,2184.8,2184.4,4.63914684]
[1750622650355,9.833,2184.8,2184.3,0.0613]
[1750622650971,9.833,2184.8,2184.3,4.63941094]
[1750622651470,9.833,2184.8,2184.2,10.0]
[1750622652001,9.833,2184.8,2184.5,4.57755245]
[1750622652156,9.833,2184.8,2184.5,0.0613]
[1750622652348,10.9678,2184.8,2184.3,4.63933839]
[1750622652550,1.1348,2184.8,2184.4,0.0613]
[1750622652870,7.736,2184.7,2184.4,0.0613]
[1750622653050,1.515,2184.9,2184.4,0.0613]
[1750622653252,9.828,2184.8,2184.4,0.0613]
[1750622653455,9.828,2184.8,2184.5,0.0613]
[1750622653656,1.515,2184.9,2184.5,4.63899826]
[1750622653858,11.00379653,2185.1,2184.6,4.57737232]
[1750622653859,7.734,2184.8,2184.6,4.57737232]
[1750622654063,7.734,2184.8,2184.7,0.0607]
[1750622654262,0.00479653,2185.1,2184.5,11.57887268]
[1750622654461,0.00479653,2185.1,2184.6,6.85580714]
[1750622654675,0.00479653,2185.1,2184.6,6.85580191]
[1750622654883,0.00479653,2185.1,2184.6,0.0607]
[1750622655062,0.00479653,2185.1,2184.6,4.63818197]
[1750622655268,0.06619653,2185.1,2184.3,0.0607]
[1750622655459,7.747,2185.0,2184.7,0.0607]
[1750622655655,7.747,2185.0,2184.5,4.57763888]
[1750622655880,8.89199965,2185.0,2184.6,4.57746046]
[1750622656060,8.89199965,2185.0,2184.5,4.63831482]
[1750622656368,0.3234515,2184.9,2184.7,4.57726922]
[1750622656568,0.3234515,2184.9,2184.8,0.0607]
[1750622656777,0.3234515,2184.9,2184.8,4.63777799]
[1750622657088,0.55,2184.7,2184.0,1.564]
[1750622657286,3.7171,2184.6,2183.9,0.0607]
[1750622657454,8.19585,2184.5,2184.0,10.0]
[1750622657655,9.856,2184.4,2184.1,0.0607]
[1750622658554,9.856,2184.4,2184.1,4.639117]
[1750622658752,9.856,2184.4,2184.2,0.0607]
[1750622659391,2.092,2184.4,2184.3,0.0607]
[1750622660093,2.092,2184.4,2184.0,11.5673]
[1750622660259,2.092,2184.4,2184.2,0.0607]
[1750622660461,2.092,2184.4,2184.0,10.0607]
[1750622660773,2.092,2184.4,2184.0,10.0]
[1750622661108,2.092,2184.4,2183.7,3.15329085]
[1750622661258,1.5531,2184.3,2183.7,1.58599085]
[1750622661604,0.0614,2184.1,2183.7,1.58599085]
[1750622661758,7.767,2184.0,2183.7,1.58599085]
[1750622662095,1.5531,2183.9,2183.7,1.58599085]
[1750622662483,1.92375,2184.2,2183.7,1.64669085]
[1750622662683,7.768,2184.0,2183.7,1.64669085]
[1750622663213,7.768,2184.0,2183.9,4.63966423]
[1750622663706,7.768,2184.0,2183.9,15.84398916]
[1750622663860,2.092,2184.2,2184.1,4.57854493]
[1750622664060,7.773,2184.4,2184.2,0.0607]
[1750622665396,7.773,2184.4,2184.0,4.53937936]
[1750622665978,7.773,2184.4,2184.1,4.57848046]
[1750622666400,7.773,2184.4,2184.0,4.57867515]
[1750622667402,7.773,2184.4,2184.1,0.0607]
[1750622668175,7.773,2184.4,2183.9,16.23010523]
[1750622668386,7.76,2184.7,2184.2,14.95186755]
[1750622668619,7.76,2184.7,2184.2,15.01256755]
[1750622668786,7.76,2184.7,2184.3,0.0607]
[1750622669122,7.76,2184.7,2184.4,0.0607]
[1750622669322,7.76,2184.7,2184.2,19.53010984]
[1750622669523,7.76,2184.7,2184.3,4.63881487]
[1750622669880,7.76,2184.7,2184.4,4.57788622]
[1750622670185,7.76,2184.7,2184.3,4.63871843]
[1750622670390,7.76,2184.7,2184.3,0.0607]
[1750622670789,0.3234515,2184.6,2184.2,15.01256755]
[1750622671002,0.3234515,2184.6,2184.2,17.77100457]
[1750622671203,0.3234515,2184.6,2184.2,22.34930256]
[1750622671920,0.3848515,2184.6,2184.1,1.6298]
[1750622672216,0.0614,2184.5,2184.0,10.0]
[1750622672381,0.0614,2184.4,2184.0,10.0]
[1750622673413,0.3234515,2184.5,2184.1,4.6390557]
[1750622673579,0.3234515,2184.5,2184.1,4.63913052]
[1750622674841,0.3234515,2184.5,2184.3,10.0]
[1750622675012,2.10817687,2185.1,2184.6,4.57747192]
[1750622675215,2.10817687,2185.1,2185.0,19.52852658]
[1750622675386,2.10817687,2185.1,2185.0,14.95186755]
[1750622676094,2.10817687,2185.1,2184.7,4.57727827]
[1750622676095,2.16957687,2185.1,2184.7,14.95186755]
[1750622676295,2.16957687,2185.1,2184.7,10.0]
[1750622676823,7.761,2185.0,2184.7,14.57726968]
[1750622677322,7.761,2185.0,2184.7,10.0607]
[1750622677622,7.761,2185.0,2184.8,4.63758138]
[1750622677797,7.761,2185.0,2184.9,4.5768685]
[1750622678113,8.0844515,2185.0,2184.9,4.6375685]
[1750622678320,8.0844515,2185.0,2184.7,25.78692098]
[1750622678623,8.0844515,2185.0,2184.7,25.84762098]
[1750622679295,1.5997,2184.9,2184.4,11.2097422]
[1750622679494,0.0614,2184.6,2184.0,0.0607]
[1750622679702,7.757,2184.5,2184.1,11.2097422]
[1750622679891,7.757,2184.5,2184.1,18.43230187]
[1750622680429,7.8184,2184.5,2183.9,10.0]
[1750622681241,0.0614,2184.3,2183.8,4.57917391]
[1750622681525,0.0614,2184.3,2183.7,1.58599085]
[1750622681711,1.501,2184.4,2183.7,11.58599085]
[1750622682027,9.885,2184.3,2183.7,6.16526411]
[1750622682228,9.885,2184.3,2183.7,6.86676011]
[1750622682532,9.885,2184.3,2183.9,10.0]
[1750622682716,1.501,2184.4,2183.9,10.0]
[1750622682917,7.779,2184.3,2183.9,10.0]
[1750622683502,7.777,2184.8,2184.1,4.57843693]
[1750622683703,1.501,2184.6,2184.1,4.63913693]
[1750622683930,9.277,2184.9,2184.2,11.2717422]
[1750622684134,9.277,2184.9,2184.3,4.57812571]
[1750622684442,9.277,2184.9,2184.6,0.062]
[1750622684735,7.784,2184.9,2184.7,4.57710083]
[1750622684898,7.784,2185.0,2184.7,4.63915774]
[1750622685093,8.1074515,2185.0,2184.8,4.63902464]
[1750622685301,8.1074515,2185.0,2184.8,0.062]
[1750622685519,8.1074515,2185.0,2184.9,4.5768685]
[1750622685894,8.1074515,2185.0,2184.8,4.57697721]
[1750622686108,0.3234515,2184.9,2184.8,4.57697721]
[1750622686332,0.3234515,2184.9,2184.8,4.63897721]
[1750622686828,0.3234515,2184.9,2184.8,4.68474431]
[1750622687263,0.3234515,2184.9,2184.8,0.062]
[1750622687849,0.3234515,2184.9,2184.8,4.63907799]
[1750622688159,0.3234515,2184.9,2184.8,0.062]
[1750622688356,0.3234515,2184.9,2184.7,4.57728126]
[1750622688556,0.3234515,2184.9,2184.7,4.63928749]
[1750622688867,0.3234515,2184.9,2184.8,6.21507799]
[1750622689072,0.001654,2185.1,2185.0,4.57665903]
[1750622689370,0.001654,2185.1,2185.0,4.63865903]
[1750622689880,0.001654,2185.1,2185.0,5.10379981]
[1750622691337,0.001654,2185.1,2184.8,11.576]
[1750622691536,0.001654,2185.1,2184.8,10.0]
[1750622691537,1.625354,2185.1,2184.8,10.0]
[1750622692441,1.566154,2185.1,2184.8,10.0]
[1750622692641,0.0592,2185.0,2184.3,6.19206366]
[1750622692873,7.767,2184.9,2184.4,4.57790473]
[1750622693043,7.8262,2184.9,2184.5,10.0]
[1750622693448,7.8262,2184.9,2184.2,7.19553847]
[1750622693773,1.5645,2184.8,2184.2,0.45131347]
[1750622693973,2.54086354,2184.8,2184.2,10.0]
[1750622694276,2.54086354,2184.8,2184.2,14.57823158]
[1750622694439,2.60006354,2184.8,2184.2,14.57822001]
[1750622694634,1.6237,2184.8,2184.3,4.57796563]
[1750622695584,1.6237,2184.8,2184.3,4.63996563]
[1750622695885,1.5645,2184.8,2184.3,4.57796563]
[1750622696044,9.3315,2184.8,2184.6,4.57734315]
[1750622696243,9.3315,2184.8,2184.5,0.062]
[1750622696553,7.767,2184.8,2184.6,4.57746266]
[1750622697186,7.767,2184.8,2184.3,4.57812571]
[1750622697336,7.767,2184.8,2184.3,14.57800375]
[1750622697540,7.8262,2184.8,2184.3,14.57800375]
[1750622697739,8.8133,2184.8,2184.3,14.57800375]
[1750622697941,7.8262,2184.8,2184.3,14.64000375]
[1750622698675,7.8262,2184.8,2184.3,10.062]
[1750622699174,7.8262,2184.8,2184.3,14.57807675]
[1750622699475,7.767,2184.8,2184.4,4.6398832]
[1750622699785,1.5241,2184.7,2184.3,10.0]
[1750622700474,1.5241,2184.7,2184.2,16.23794846]
[1750622700475,2.51833,2184.7,2184.1,0.0607]
[1750622700987,2.104,2185.0,2184.1,0.0607]
[1750622700988,1.5762,2185.0,2184.4,15.01377998]
[1750622701136,1.5762,2185.0,2184.8,0.062]
[1750622701537,1.5762,2185.0,2184.4,14.95177998]
[1750622701767,7.755,2185.2,2184.5,4.57757421]
[1750622702039,1.5762,2185.3,2185.0,4.63864772]
[1750622702238,2.104,2185.4,2185.1,4.68409657]
[1750622702473,2.104,2185.4,2185.2,0.062]
[1750622702873,3.24932,2185.4,2184.9,10.0]
[1750622703078,3.30852,2185.4,2184.9,10.0]
[1750622703963,3.30852,2185.4,2184.8,11.5426]
[1750622704149,3.30852,2185.4,2184.9,4.68453527]
[1750622704466,3.30852,2185.4,2184.8,31.07136592]
[1750622704665,1.167352,2185.3,2184.8,24.95177998]
[1750622704843,1.5762,2185.2,2184.7,0.062]
[1750622705042,1.5854,2185.2,2184.6,14.57746258]
[1750622705456,1.5262,2185.2,2184.8,14.63887141]
[1750622705676,1.5262,2185.2,2184.9,4.63875284]
[1750622706005,1.5262,2185.2,2184.8,24.95177998]
[1750622706142,1.5854,2185.2,2184.8,27.91087328]
[1750622706544,1.5262,2185.2,2184.8,32.48793721]
[1750622706848,1.5262,2185.2,2184.8,27.91087328]
[1750622706849,7.764,2185.1,2184.8,27.91087328]
[1750622707170,1.5262,2185.2,2184.8,27.91087328]
[1750622707476,1.5262,2185.2,2184.8,10.0]
[1750622707477,7.8212,2185.1,2184.8,10.0]
[1750622707842,7.762,2185.1,2184.8,14.57705218]
[1750622709075,9.2892,2185.2,2184.9,0.10776713]
[1750622709270,9.2892,2185.2,2185.0,0.062]
[1750622709579,9.2892,2185.2,2185.0,4.57663254]
[1750622709781,7.763,2185.2,2185.0,7.59605051]
[1750622710281,7.763,2185.2,2185.0,3.01941797]
[1750622710485,7.763,2185.2,2185.0,2.95741797]
[1750622710685,7.763,2185.2,2184.7,10.0]
[1750622710851,7.8222,2185.2,2184.7,14.63921636]
[1750622711054,1.6101,2185.4,2184.8,0.10776508]
[1750622711255,9.3661,2185.4,2185.1,4.63835763]
[1750622711487,1.5222,2185.7,2185.2,15.01377998]
[1750622711705,7.761,2185.6,2185.4,0.062]
[1750622711855,7.761,2185.6,2185.5,4.57561198]
[1750622712054,7.761,2185.6,2185.5,4.63761198]
[1750622712307,2.11,2185.8,2185.5,4.63761198]
[1750622712507,2.11,2185.8,2185.6,4.5752779]
[1750622712809,2.11,2185.8,2185.7,4.5751933]
[1750622713337,2.18886667,2186.1,2185.7,4.5751933]
[1750622713581,2.18886667,2186.1,2185.8,4.57487718]
[1750622713823,7.759,2186.0,2185.8,15.01377998]
[1750622714044,9.02448667,2186.0,2185.1,2.63517645]
[1750622714189,1.5222,2185.7,2185.0,10.0]
[1750622714539,2.1697,2185.6,2185.0,15.04326206]
[1750622714741,7.763,2185.5,2185.1,4.63804959]
[1750622714942,2.1697,2185.6,2185.1,4.63804959]
[1750622714943,1.5222,2185.7,2185.2,4.57620316]
[1750622715145,7.762,2185.4,2185.0,18.6634618]
[1750622715462,1.5819,2185.3,2184.6,16.52067998]
[1750622715587,1.5819,2185.3,2184.6,14.95177998]
[1750622715792,1.5819,2185.3,2184.7,14.5771583]
[1750622716123,1.5222,2185.3,2184.7,10.52538763]
[1750622716304,7.763,2185.2,2184.9,4.57685299]
[1750622716498,7.763,2185.2,2184.7,15.10251924]
[1750622716802,7.763,2185.2,2184.8,6.08721771]
[1750622717128,7.763,2185.2,2184.8,6.14881771]
[1750622718437,1.5222,2185.3,2185.0,4.63814028]
[1750622718819,1.5222,2185.3,2185.0,4.68390158]
[1750622719020,1.5222,2185.3,2184.9,4.57675315]
[1750622719335,1.5222,2185.3,2185.0,4.57652881]
[1750622719534,1.5222,2185.3,2184.9,4.68418011]
[1750622719858,1.5222,2185.3,2184.9,5.6519127]
[1750622720448,1.5222,2185.3,2185.0,18.0]
[1750622721528,7.764,2185.4,2185.2,4.57620088]
[1750622722060,7.764,2185.4,2185.1,4.63794065]
[1750622722255,1.6362,2185.6,2185.1,4.63794065]
[1750622722469,7.753,2185.3,2185.1,5.70650531]
[1750622722751,0.66666667,2186.1,2185.6,4.57540263]
[1750622722932,0.66666667,2186.1,2185.7,0.0616]
[1750622722933,7.754,2186.0,2185.7,0.0616]
[1750622723134,7.754,2186.0,2185.7,4.68247506]
[1750622723359,7.754,2186.0,2185.8,4.57485681]
[1750622723534,0.66666667,2186.1,2185.7,11.67507798]
[1750622723734,0.66666667,2186.1,2186.0,4.63616541]
[1750622725362,0.66666667,2186.1,2185.7,15.1048946]
[1750622725676,7.759,2186.0,2185.9,4.63637469]
[1750622725876,7.759,2186.0,2185.7,15.10483233]
[1750622726096,7.759,2186.0,2185.8,16.70910377]
[1750622726230,7.759,2186.0,2185.9,4.57477469]
[1750622726433,8.42366667,2186.1,2185.8,2.19572848]
[1750622726632,8.42366667,2186.1,2185.8,2.13412848]
[1750622726954,1.5475,2186.0,2185.7,10.0]
[1750622727144,1.5475,2186.0,2185.6,10.0616]
[1750622727395,1.5475,2186.0,2185.6,14.63697144]
[1750622727548,1.5475,2186.0,2185.6,10.0]
[1750622728573,1.5475,2186.0,2185.6,14.57538296]
[1750622728792,1.5475,2186.0,2185.6,14.63698296]
[1750622729156,8.42366667,2186.1,2185.8,0.0616]
[1750622729157,0.66666667,2186.1,2185.8,0.0616]
[1750622729482,0.72636667,2186.1,2185.6,1.5252983]
[1750622729682,0.66666667,2186.1,2185.7,4.57513608]
[1750622729853,0.66666667,2186.1,2185.7,4.63673608]
[1750622730058,0.66666667,2186.1,2185.8,4.68229519]
[1750622730462,0.66666667,2186.1,2185.8,0.0616]
[1750622730982,0.66666667,2186.1,2185.7,1.06143672]
[1750622731286,0.66666667,2186.1,2185.5,4.57553216]
[1750622731287,0.72636667,2186.1,2185.4,0.44868535]
[1750622731482,0.72636667,2186.1,2185.5,4.57556815]
[1750622731784,0.0597,2186.0,2185.4,10.0]
[1750622731948,1.6483,2186.0,2185.1,1.47781222]
[1750622732283,0.0597,2185.6,2184.8,4.57707799]
[1750622732449,1.5886,2185.3,2184.5,1.6152]
[1750622732650,0.0597,2185.0,2184.3,0.0616]